Cogmind - Beta 14 @@@ ROGUE MODE // 2024.08.31 @ 15:52:29 Player: Zaros426 Result: Destroyed by as-33169 with Assembled Blade Performance ------------- Evolutions (0) 0 Regions Visited (3) 600 Robots Destroyed (30) 150 Value Destroyed (428) 428 Prototype IDs (39) 780 Alien Tech Used (0) 0 Bonus (138) 138 TOTAL SCORE: 2096 Bonus ------- Follower Combat Kills 60 Aligned with FarCom 300 Friendly Fire -222 Cogmind --------- Core Integrity 0/250 Matter 204/300 Energy 1595/1780 System Corruption 3% Temperature Cool (0) Movement Core (400) Ox7 Location -10/Exiles Parts ------- > --- POWER (1) -------- Heavy Ion Engine > --- PROPULSION (2) --- (None) > --- UTILITY (2) ------ Superbattery > --- WEAPON (2) ------- AWS/Gauss > --- INVENTORY (5) ---- Cooling System Experimental Sensor Array Improved Terrain Scanner EM Pulse Gun EM Pulse Gun Peak State ------------ > --- POWER ------------ Heavy Ion Engine > --- PROPULSION ------- (None) > --- UTILITY ---------- Large Storage Unit Superbattery > --- WEAPON ----------- AWS/Gauss > --- INVENTORY -------- Cooling System Cooling System Large Storage Unit Experimental Sensor Array Improved Terrain Scanner Skeleton Box EM Pulse Gun EM Pulse Gun Improved Light Cannon Datajack [Rating: 32] Favorites ----------- Power Heavy Ion Engine Engine Heavy Ion Engine Propulsion Compact Wheel Treads Light Treads Wheel Compact Wheel Utility Large Storage Unit Device Shield Generator Storage Large Storage Unit Processor Targeting Computer Weapon Improved Light Cannon Energy Gun EM Pulse Gun Ballistic Gun Assault Rifle Ballistic Cannon Improved Light Cannon Impact Weapon Maul Special Melee Weapon Datajack Build | -11 -10 -10 -10 ------- Run | Yrd Mat Min Exi Slots Evolved . | . . . . Power . | . . . . Propulsion . | . . . . Utility . | . . . . Weapon . | . . . . Parts Attached 39 | 11 7 12 9 Power 4 | 1 1 1 1 Engine 4 | 1 1 1 1 Core . | . . . . Reactor . | . . . . Propulsion 12 | 5 1 3 3 Treads 5 | 2 1 1 1 Leg . | . . . . Wheel 7 | 3 . 2 2 Hover . | . . . . Flight . | . . . . Utility 12 | 2 3 6 1 Device 8 | 1 1 6 . Storage 3 | 1 1 . 1 Processor 1 | . 1 . . Hackware . | . . . . Protection . | . . . . Artifact . | . . . . Weapon 11 | 3 2 2 4 Energy Gun 1 | 1 . . . Energy Cannon . | . . . . Ballistic Gun 3 | 2 . . 1 Ballistic Cannon 4 | . 2 1 1 Launcher . | . . . . Special Weapon . | . . . . Impact Weapon 2 | . . 1 1 Slashing Weapon . | . . . . Piercing Weapon . | . . . . Special Melee Weapon 1 | . . . 1 Unidentified Prototypes 2 | . 1 1 . Parts Lost 9 | . . 2 7 Power 1 | . . . 1 Propulsion 5 | . . 2 3 Utility 1 | . . . 1 Weapon 2 | . . . 2 Highest Loss Streak 7 | . . 2 7 To Critical Strikes . | . . . . Average Slot Usage (%) 99 | . 100 99 97 Engine 13 | . 14 14 13 Treads 13 | . 14 14 13 Wheel 13 | . 14 13 13 Device 9 | . 3 14 13 Storage 14 | . 14 14 14 Processor 4 | . 11 . . Ballistic Gun 3 | . 8 . . Ballistic Cannon 18 | . 19 26 2 Impact Weapon 3 | . . 1 13 Special Melee Weapon 2 | . . . 11 Peak Build Rating 32 | 7 14 21 32 Average Rating 13 | 5 11 16 15 On Entrance 9 | . 7 14 15 Naked Turns . | . . . . Heaviest Build 38 | 15 38 38 38 Greatest Support 26 | 26 16 20 20 Greatest Overweight (x) 7 | 1 2 2 7 Average Overweight (x) 1 | . 1 1 1 Largest Inventory Capacity 15 | 8 15 15 15 Average Capacity 13 | 7 12 15 14 Most Carried 15 | 5 15 15 15 Average Carried 12 | 3 11 14 14 Final Capacity 15 | 8 15 15 5 Final Carried 15 | 5 15 14 5 Class Distribution -------------------- 100% | Mutant Dominant Class ---------------- Mutant | -10/Materials Mutant | -10/Mines Mutant | -10/Exiles Resources | -11 -10 -10 -10 ----------- Run | Yrd Mat Min Exi Matter Collected 1071 | 339 322 408 2 Remotely . | . . . . Salvage Created 866 | 159 335 372 . Parts 59 | 13 30 16 . Haulers Intercepted 1 | . 1 . . Recyclers Shooed 1 | . . 1 . Parts Field Recycled . | . . . . Retrieved Matter . | . . . . Parts Self-Destructed . | . . . . Prevented . | . . . . Kills | -11 -10 -10 -10 ------- Run | Yrd Mat Min Exi Combat Hostiles Destroyed 12 | . 7 5 . Guns 3 | . 3 . . Cannons 9 | . 4 5 . Classes Destroyed 7 | 2 4 1 . Builder 1 | . . 1 . Tunneler 8 | 5 1 2 . Hauler 1 | . 1 . . Recycler 5 | 1 1 3 . Watcher 3 | . 3 . . Swarmer 6 | . 6 . . Grunt 6 | . 1 5 . Best Kill Streak 6 | 6 4 4 . Combat Bots Only 3 | . 3 2 . Max Kills in Single Turn 2 | 1 2 1 . Gunslinging . | . . . . Exploded . | . . . . Melee . | . . . . Uniques/NPCs Destroyed . | . . . . Combat | -11 -10 -10 -10 -------- Run | Yrd Mat Min Exi Hostile Shots Fired 158 | . 35 59 64 Missed 46 | . 11 14 21 Damage Taken 1711 | . 324 476 911 Core 271 | . 84 39 148 Absorbed by Shields 185 | . 11 115 59 Core Remaining (%) 100 | 100 . . . Volleys Fired 82 | 8 33 36 5 Largest 2 | 2 2 2 1 Hottest 78 | 40 78 78 39 Shots Fired 159 | 16 66 72 5 Gun 52 | 16 36 . . Cannon 107 | . 30 72 5 Launcher . | . . . . Special . | . . . . Kinetic 159 | 16 66 72 5 Thermal . | . . . . Explosive . | . . . . Electromagnetic . | . . . . Robot Hit Streak 8 | 4 6 8 1 Robot Miss Streak 4 | 3 4 4 4 Penetration Max . | . . . . Secondary Targets 1 | . 1 . . Max Gunslinging Chain 1 | . 1 . . Shots Hit Robots 92 | 9 33 44 6 Core Hits 32 | 6 15 11 . Critical Kills . | . . . . Critical Parts Destroyed 4 | . 1 2 1 Critical Strikes 8 | . 3 4 1 Destroy 1 | . 1 . . Blast 4 | . 2 2 . Smash 3 | . . 2 1 Melee Attacks 9 | . . 4 5 Impact 5 | . . 4 1 Slashing . | . . . . Piercing . | . . . . Sneak Attacks 9 | . . 4 5 Combat Hostiles . | . . . . Follow-up Attacks . | . . . . Damage Inflicted 1966 | 125 612 1141 88 Guns 351 | 125 226 . . Cannons 1195 | . 386 795 14 Explosions . | . . . . Melee 420 | . . 346 74 Ramming . | . . . . Kinetic 1546 | 125 612 795 14 Thermal . | . . . . Explosive . | . . . . Electromagnetic . | . . . . Impact 420 | . . 346 74 Slashing . | . . . . Piercing . | . . . . Highest Corruption 3 | . 1 1 3 Average Corruption 1 | . 1 1 1 Corruption Purged . | . . . . Corruption Blocked . | . . . . Effects 15 | . 3 8 4 Message Errors 2 | . 1 1 . Matter Fused 5 | . 1 2 2 Heat Flow Errors 1 | . . 1 . Energy Discharges 2 | . . 1 1 Parts Rejected 1 | . . 1 . Data Loss (minor) 2 | . 1 . 1 Alerts 2 | . . 2 . Overload Shots . | . . . . Overflow Damage 291 | . 3 280 8 Projectiles 32 | . 3 29 . Explosions . | . . . . Melee 259 | . . 251 8 Knockbacks 17 | . 3 13 1 Impact 3 | . . 2 1 Kinetic 14 | . 3 11 . Secondary . | . . . . Self-Inflicted Damage . | . . . . Shots . | . . . . Rammed . | . . . . Targets Rammed . | . . . . Kicked . | . . . . Crushed . | . . . . Highest Temperature 322 | . 132 322 . Average Temperature 74 | . 37 89 . Received Heat Transfer 323 | . 36 287 . Siege Activations . | . . . . Robots Corrupted 2 | . . 2 . Combat Hostiles . | . . . . Parts Fried 5 | . . 5 . Impact Corruptions 17 | . . 8 9 Robots Melted . | . . . . Combat Hostiles . | . . . . Parts Melted . | . . . . Heat Transferred . | . . . . Parts Sabotaged . | . . . . Parts Stolen . | . . . . Parts Stripped . | . . . . Power Chain Reactions . | . . . . Alert | -11 -10 -10 -10 ------- Run | Yrd Mat Min Exi Peak Influence 141 | 30 141 102 . Initial 19 | . 19 16 . Average 61 | 12 65 62 . Maximum Alert Level . | . . . . Low Security (%) 100 | 100 100 100 . Level 1 . | . . . . Level 2 . | . . . . Level 3 . | . . . . Level 4 . | . . . . Level 5 . | . . . . High Security . | . . . . Max Security . | . . . . Squads Dispatched 1 | . . 1 . Investigation . | . . . . Extermination . | . . . . Reinforcement . | . . . . Assault 1 | . . 1 . Garrison . | . . . . Intercept . | . . . . Searches Triggered . | . . . . Construction Impeded . | . . . . Haulers Reinforced . | . . . . Active Scanning Responses . | . . . . Cargo Convoy Interrupts . | . . . . Stealth | -11 -10 -10 -10 --------- Run | Yrd Mat Min Exi Distress Signals . | . . . . Communications Jammed . | . . . . Distress Signals . | . . . . Times Spotted 38 | . 19 11 8 Peak Tracking Total 11 | . 3 4 11 Tactical Retreats 8 | . 4 2 2 Traps | -11 -10 -10 -10 ------- Run | Yrd Mat Min Exi Traps Triggered 3 | . 3 . . Indirectly . | . . . . Trap Hack Attempts . | . . . . Triggered . | . . . . Disarmed . | . . . . Reprogrammed . | . . . . Reused . | . . . . Traps Extracted . | . . . . Installed . | . . . . Triggered . | . . . . Machines | -11 -10 -10 -10 ---------- Run | Yrd Mat Min Exi Machines Disabled 4 | . . 1 3 Max in Single Turn 1 | . . 1 1 Machines Repaired . | . . . . Machines Dismantled . | . . . . Machines Sabotaged . | . . . . Overloaded Fab Kills . | . . . . Hacking | -11 -10 -10 -10 --------- Run | Yrd Mat Min Exi Machines Accessed 8 | . 6 . 2 Terminals 6 | . 6 . . Fabricators . | . . . . Repair Stations . | . . . . Recycling Units . | . . . . Scanalyzers . | . . . . Garrison Access . | . . . . Total Hacks 39 | . 15 . 24 Successful 35 | . 11 . 24 Failed 4 | . 4 . . Catastrophic . | . . . . Database Lockouts . | . . . . Manual 14 | . 13 . 1 Terminals 15 | . 15 . . Fabricators . | . . . . Repair Stations . | . . . . Recycling Units . | . . . . Scanalyzers . | . . . . Garrison Access . | . . . . Terminal Hacks 25 | . 1 . 24 Record 23 | . . . 23 Unreport Threat 1 | . 1 . . Derelict Proto ID Bank 1 | . . . 1 Fabricator Hacks . | . . . . Repair Station Hacks . | . . . . Recycling Unit Hacks . | . . . . Scanalyzer . | . . . . Garrison Access Hacks . | . . . . Unauthorized Hacks 8 | . 8 . . Terminals 8 | . 8 . . Botnet 2 | . 2 . . Skim 6 | . 6 . . Fabricators . | . . . . Repair Stations . | . . . . Recycling Units . | . . . . Scanalyzers . | . . . . Garrison Access . | . . . . Data Cores Recovered . | . . . . Used . | . . . . Hacking Detections 5 | . 5 . . Full Trace Events 2 | . 2 . . Feedback Events . | . . . . Feedback Blocked . | . . . . Robot Schematics Acquired . | . . . . Robots Built . | . . . . Authchips . | . . . . Time . | . . . . Total Robot Build Rating . | . . . . Part Schematics Acquired . | . . . . Parts Built . | . . . . Authchips . | . . . . Time . | . . . . Total Part Build Rating . | . . . . Parts Repaired . | . . . . Time . | . . . . Parts Recycled . | . . . . Recycled Matter . | . . . . Retrieved Matter . | . . . . Retrieved Components . | . . . . Parts Scanalyzed . | . . . . Part Schematics Acquired . | . . . . Parts Damaged . | . . . . Bothacking | -11 -10 -10 -10 ------------ Run | Yrd Mat Min Exi Used RIF Installer . | . . . . Robots Hacked 4 | . . . 4 Non-combat 3 | . . . 3 Combat 1 | . . . 1 Robot Hacks Applied 4 | . . . 4 parse_system 4 | . . . 4 Relay Couplers Released . | . . . . Fabnet Peak Effective % . | . . . . Robots Rewired . | . . . . Allies Hacked . | . . . . Hacks Repelled . | . . . . Allies | -11 -10 -10 -10 -------- Run | Yrd Mat Min Exi Total Allies 2 | . . 2 . Largest Group 1 | . . 1 1 Highest-Rated Group 31 | . . 31 31 Highest-Rated Ally 31 | . . 31 31 Total Orders . | . . . . Ally Attacks 8 | . . 8 . Total Damage 146 | . . 146 . Kills 2 | . . 2 . Allies Corrupted . | . . . . Allies Melted . | . . . . Intel | -11 -10 -10 -10 ------- Run | Yrd Mat Min Exi Robot Analysis Total . | . . . . Derelict Logs Recovered 2 | . . 2 . Drone Launches . | . . . . Drone Recoveries . | . . . . Exploration | -11 -10 -10 -10 ------------- Run | Yrd Mat Min Exi Turns Passed 3004 | 126 1118 1085 675 Spaces Moved 2068 | 86 810 703 469 Core 13 | 12 . . 1 Treads 30 | . . 2 28 Legs . | . . . . Wheels 2025 | 74 810 701 440 Hover . | . . . . Flight . | . . . . Fastest Speed 50 | 50 100 130 115 Average Speed 125 | 94 118 130 136 Slowest Speed 400 | 100 130 240 400 Overloaded Moves . | . . . . Propulsion Burnouts . | . . . . Robots Hopped . | . . . . Cave-ins Triggered . | . . . . Exploration Rate (%) 66 | 4 96 95 70 Regions Visited 3 Branch Regions 2 Pre-discovered Areas 2 | . . 1 1 Known Exits Taken . | . . . . Unknown Exits Taken 3 | 1 1 1 . Scrap Searched 1 | . . 1 . Spaces Dug . | . . . . Terrain Destroyed 9 | . 4 5 . Melee . | . . . . Projectile 9 | . 4 5 . AOE . | . . . . Terrain Rammed . | . . . . Walls Destroyed . | . . . . Machines Disabled . | . . . . Actions | -11 -10 -10 -10 --------- Run | Yrd Mat Min Exi Total 2292 | 109 901 787 495 Wait 59 | . 30 29 . Move 2065 | 85 809 702 469 Hop . | . . . . Pick Up 23 | 5 13 2 3 Fast Attach 13 | 7 4 2 . Attach 5 | . . 1 4 Detach . | . . . . Swap 21 | 4 3 9 5 Drop 15 | . 9 2 4 Fire 82 | 8 33 36 5 Melee 9 | . . 4 5 Ram . | . . . . Kick . | . . . . Crush . | . . . . Escape Stasis . | . . . . Rewire . | . . . . Trap . | . . . . Miscellaneous . | . . . . Route ------- -11/Scrapyard -10/Materials (discovered 5 exits: [*Mat x3] / [*Min x2]) -10/Mines (discovered 3 exits: [*Mat x2] / *Exi) -10/Exiles (discovered 1 exit: [*Min]) History --------- Turn | Location | Event 9 | -11/Scrapyard | Discovered new exit (range 16) 127 | -11/Scrapyard | Entered Materials 244 | -10/Materials | Discovered new exit (range 15) 307 | -10/Materials | Build established: Mutant 446 | -10/Materials | Discovered new exit (range 16) 775 | -10/Materials | Discovered new exit (range 14) 932 | -10/Materials | Discovered new exit (range 5) 1004 | -10/Materials | Discovered new exit (range 12) 1245 | -10/Materials | Entered Mines 1427 | -10/Mines | Learned location of Zion (-6) 1556 | -10/Mines | Found a damaged Exp. Sensor Array with a note attached 1562 | -10/Mines | Found Prototype Device 1576 | -10/Mines | Identified Exp. Sensor Array 1748 | -10/Mines | Discovered new exit (range 9) 1749 | -10/Mines | Met a Derelict testing a Signal Generator 1973 | -10/Mines | Deemed a non-threat by the Exiles lab entrance 1973 | -10/Mines | Discovered new exit (range 5) 1993 | -10/Mines | Discovered new exit (range 12) 2156 | -10/Mines | Learned Materials terminal intel 2238 | -10/Mines | Received a Mining Laser from a helpful Derelict 2330 | -10/Mines | Entered Exiles 2330 | -10/Exiles | Accompanied by 1 ally 2360 | -10/Exiles | Met 8R-AWN 2388 | -10/Exiles | Met EX-HEX 2455 | -10/Exiles | Met EX-BIN 2493 | -10/Exiles | Met EX-DEC 2579 | -10/Exiles | Aligned with FarCom system 2580 | -10/Exiles | Given EX-Vault access code 2610 | -10/Exiles | Opened EX-Vault 2618 | -10/Exiles | Found Superbattery 2621 | -10/Exiles | Found Skeleton Box 2624 | -10/Exiles | Found AWS/Gauss 2655 | -10/Exiles | Warned to stay clear of 0b10 Research branches 2755 | -10/Exiles | Discovered new exit (range 14) 2963 | -10/Exiles | Attacked by the Exiles 2965 | -10/Exiles | Core integrity fell below 50% 2994 | -10/Exiles | Core integrity fell below 20% 3005 | -10/Exiles | Destroyed by as-33169 with Assembled Blade Last Messages --------------- 02962_ Destroyed EX Chip 1. 02962_ Destroyed EX Chip 2. 02962_ EX-DEC system corrupted by crushing effect. 02963_ EXILES: Hostile robot within lab perimeter. Defensive protocols time, folks! 02965_ EX-DEC: "Let's see what this bad boy can do..." 02965_ EX-DEC deploys DAS Turret. 02966_ Knocked back. 02968_ Shield Generator destroyed. 02969_ Machine disabled. 02971_ Knocked back. 02972_ Acquired 2 matter. 02976_ EX-BIN: "I just want to science!" 02977_ Lgt. Treads destroyed. 02977_ Com. Wheel destroyed. 02979_ Imp. Light Cannon destroyed. 02997_ Hvy. Ion Engine destroyed. 02998_ Machine disabled. 02999_ Maul destroyed. 02999_ Com. Wheel destroyed. 03002_ Dropped Lrg. Storage Unit. Map ----- +----------------------------------------------------+ | ?????????????????????????????????????????????????? | | ?????????????????????????????????????????????????? | | ?????????????????????????????????????????????????? | | ?????????????????????????????????????????????????? | | ?????????????????????????????????????????????????? | | ?????????????????????????????????????????????????? | | ?????????????????????????????????????????????????? | | ?????????????????????????????????????????????????? | | ?????????????????????????????????????????????????? | | ?????????????????????????????????????????????????? | | ??????????#####??????????????????????????????????? | | ?????????## ##?????????????????????????????????? | | ?????????# #?????????????????????????????????? | | ?????????# < #?????????????????????????????????? | | ?????????# ###???????????????????????????????? | | ?????????# #???????????????????????????????? | | ?????????# #????????????????????????????????? | | ??????????# #????????????????????????????????? | | ??????????# ##???????????????????????????????? | | ??????????## #????????????#######????????????? | | ???????????# #######??????#!!! "#????????????? | | ???????????# #""##?????# "#????????????? | | ???????????## #?????# "#????????????? | | ????????????##" ##???## ""#???????????## | | ????????????#"" #####" ""#??????????? | | ????????????#### @a]##" ""#??????????#"" | | ???????????????## aa!#" #????????????#"" | | ????????????????#"## ! #????????????#"" | | ????????????????####### ##???????????#"" | | ??????????????????????### "#???????????# | | ????????????????########" ###?????????#"" | | ????????????????# !!""""" ##??????????# | | ????????????????#! "###""a ######???### | | ????????????????#! "#?##" """#####X# | | ????????????????#! ##??#" a | | ????????????????# !""""""###???#"# | | ????????????????##########?????#### | | ??????????????????????????????????### | | ????????????????????????????????????### | | ??????????????????????????????????????## | | ???????????????????????????????????????## | | ????????????????????????????????????????##" % | | ?????????????????????????????????????????#" | | ????????????????????????????????????????##" % | | ????????????????????????????????????????#"" | | ???????????????????????????????????????## | | ???????????????????????????????????????#"" | | ???????????????????????????????????????#"" | | ???????????????????????????????????????#"" | | ???????????????????????????????????????#" " | +----------------------------------------------------+ Best States ------------- Heat Dissipation 47 Energy Generation 14 Energy Capacity 280 Matter Stores 300 Matter Capacity 300 Sight Range 16 Robot Scan Range 20 Terrain Scan Density 10 Evasion (%) 44 Targeting Accuracy 5 Recoil Reduction 1 Item Schematics ----------------- None Robot Schematics ------------------ None Fabricated ------------ Nothing Alien Tech Used ----------------- None Achievements -------------- None Challenges ------------ None Game ------ Seed NetworkEnergyProjector Manual? 0 Play Time 00:24:23 Cumulative 40.7 hours Start 2024.08.31 @ 15:29:04 End 2024.08.31 @ 15:52:29 Sessions 1 Manual Loads 0 Difficulty Rogue Special Mode None Game No. 28 Rogue 28 Adventurer 0 Explorer 0 Win Type - Total 0 Types 0/0/0/0/0/0/0/0/0 Lore% 33 Gallery% 45 Achievement% 39 Wizard Run 0 Options --------- Layout 0 ASCII 0 Keyboard 0 Movement Mouse Keybinds 0 Fullscreen 1 Font 24/Smallcaps Map View 183x50 Zoom Use 0% Tactical HUD 1 Map Filters NONE Filters NONE Steam 0 RUN: 48cbb391-7f2e-421a-a58b-438e4fe1157b